Cogmind - Beta 14 @@@ ROGUE MODE // 2024.12.01 @ 22:31:45 Player: akira Result: Destroyed by G-34 Mercenary with Small Laser Performance ------------- Evolutions (0) 0 Regions Visited (2) 400 Robots Destroyed (20) 100 Value Destroyed (471) 471 Prototype IDs (0) 0 Alien Tech Used (0) 0 Bonus (0) 0 TOTAL SCORE: 971 Bonus ------- None Cogmind --------- Core Integrity 0/250 Matter 230/300 Energy 99/100 System Corruption 5% Temperature Cool (6) Movement Core (100) Ox1 Location -10/Mines Parts ------- > --- POWER (1) -------- (None) > --- PROPULSION (2) --- (None) > --- UTILITY (2) ------ Small Storage Unit > --- WEAPON (2) ------- (None) > --- INVENTORY (8) ---- Ion Engine Aluminum Leg Aluminum Leg Wheel Small Laser Peak State ------------ > --- POWER ------------ Light Nuclear Core > --- PROPULSION ------- Light Treads Light Treads > --- UTILITY ---------- Improved Heat Sink Small Storage Unit > --- WEAPON ----------- Small Laser Light Assault Rifle > --- INVENTORY -------- Ion Engine Ion Engine Aluminum Leg Aluminum Leg Wheel Seismic Detector Grenade Launcher Grenade Launcher [Rating: 11] Favorites ----------- Power Ion Engine Engine Ion Engine Power Core Light Nuclear Core Propulsion Aluminum Leg Treads Light Treads Leg Aluminum Leg Utility Small Storage Unit Device Improved Terrain Scanner Storage Small Storage Unit Weapon Light Assault Rifle Energy Gun Small Laser Ballistic Gun Light Assault Rifle Launcher Grenade Launcher Build | -11 -10 -10 ------- Run | Yrd Mat Min Slots Evolved . | . . . Power . | . . . Propulsion . | . . . Utility . | . . . Weapon . | . . . Parts Attached 19 | 6 8 5 Power 4 | 1 3 . Engine 3 | 1 2 . Core 1 | . 1 . Reactor . | . . . Propulsion 4 | 2 2 . Treads 2 | . 2 . Leg 2 | 2 . . Wheel . | . . . Hover . | . . . Flight . | . . . Utility 4 | 1 2 1 Device 3 | . 2 1 Storage 1 | 1 . . Processor . | . . . Hackware . | . . . Protection . | . . . Artifact . | . . . Weapon 7 | 2 1 4 Energy Gun 2 | . 1 1 Energy Cannon . | . . . Ballistic Gun 2 | 2 . . Ballistic Cannon . | . . . Launcher 3 | . . 3 Special Weapon . | . . . Impact Weapon . | . . . Slashing Weapon . | . . . Piercing Weapon . | . . . Special Melee Weapon . | . . . Unidentified Prototypes . | . . . Parts Lost 13 | . 7 6 Power 2 | . 1 1 Propulsion 4 | . 2 2 Utility 3 | . 2 1 Weapon 4 | . 2 2 Highest Loss Streak 6 | . 3 6 To Critical Strikes . | . . . Average Slot Usage (%) 91 | . 94 47 Engine 10 | . 11 7 Core 2 | . 2 . Treads 10 | . 10 9 Leg 15 | . 16 . Device 12 | . 13 4 Storage 14 | . 14 14 Energy Gun 2 | . 1 4 Ballistic Gun 21 | . 23 . Peak Build Rating 11 | 7 11 7 Average Rating 8 | 5 9 2 On Entrance 4 | . 7 5 Naked Turns . | . . . Heaviest Build 17 | 13 14 17 Greatest Support 40 | 20 40 40 Greatest Overweight (x) 2 | . . 2 Average Overweight (x) . | . . . Largest Inventory Capacity 8 | 8 8 8 Average Capacity 7 | 7 8 8 Most Carried 8 | 8 8 6 Average Carried 7 | 3 7 5 Final Capacity 8 | 8 8 8 Final Carried 8 | 8 7 5 Class Distribution -------------------- 100% | Mutant Dominant Class ---------------- Mutant | -10/Materials Mutant | -10/Mines Resources | -11 -10 -10 ----------- Run | Yrd Mat Min Matter Collected 566 | 197 369 . Remotely . | . . . Salvage Created 660 | 29 585 46 Parts 40 | 5 35 . Haulers Intercepted . | . . . Recyclers Shooed 1 | . 1 . Parts Field Recycled . | . . . Retrieved Matter . | . . . Parts Self-Destructed . | . . . Prevented . | . . . Kills | -11 -10 -10 ------- Run | Yrd Mat Min Combat Hostiles Destroyed 24 | . 16 8 Guns 17 | . 16 1 AOE 7 | . . 7 Classes Destroyed 6 | 1 4 1 Builder 1 | . 1 . Tunneler 2 | 2 . . Watcher 1 | . 1 . Swarmer 6 | . 6 . Grunt 10 | . 10 . Assembled 8 | . . 8 Best Kill Streak 8 | 2 3 8 Combat Bots Only 8 | . 3 8 Max Kills in Single Turn 3 | 1 1 3 Gunslinging . | . . . Exploded 3 | . . 3 Melee . | . . . Uniques/NPCs Destroyed . | . . . Combat | -11 -10 -10 -------- Run | Yrd Mat Min Hostile Shots Fired 170 | . 137 33 Missed 48 | . 37 11 Damage Taken 1448 | . 1048 400 Core 260 | . 208 52 Absorbed by Shields . | . . . Core Remaining (%) 100 | 100 . . Volleys Fired 96 | 2 89 5 Largest 2 | 2 2 2 Hottest 60 | 40 60 60 Shots Fired 171 | 4 160 7 Gun 166 | 4 160 2 Cannon . | . . . Launcher 5 | . . 5 Special . | . . . Kinetic 144 | 4 140 . Thermal 22 | . 20 2 Explosive 5 | . . 5 Electromagnetic . | . . . Robot Hit Streak 9 | 2 9 4 Robot Miss Streak 4 | . 4 1 Penetration Max . | . . . Secondary Targets 3 | . 3 . Max Gunslinging Chain 1 | . 1 . Shots Hit Robots 109 | 2 102 5 Core Hits 52 | 2 39 11 Critical Kills 1 | . 1 . Critical Parts Destroyed . | . . . Critical Strikes 1 | . 1 . Destroy 1 | . 1 . Melee Attacks . | . . . Impact . | . . . Slashing . | . . . Piercing . | . . . Sneak Attacks . | . . . Combat Hostiles . | . . . Follow-up Attacks . | . . . Damage Inflicted 1385 | 25 980 380 Guns 1026 | 25 980 21 Cannons . | . . . Explosions 359 | . . 359 Melee . | . . . Ramming . | . . . Kinetic 873 | 25 848 . Thermal 153 | . 132 21 Explosive 359 | . . 359 Electromagnetic . | . . . Impact . | . . . Slashing . | . . . Piercing . | . . . Highest Corruption 5 | . . 5 Average Corruption 5 | . . 5 Corruption Purged . | . . . Corruption Blocked . | . . . Effects 2 | . . 2 Message Errors 1 | . . 1 Heat Flow Errors 1 | . . 1 Overload Shots . | . . . Overflow Damage 24 | . . 24 Projectiles . | . . . Explosions 24 | . . 24 Melee . | . . . Knockbacks . | . . . Impact . | . . . Kinetic . | . . . Secondary . | . . . Self-Inflicted Damage 43 | . . 43 Shots 3 | . . 3 Rammed . | . . . Targets Rammed . | . . . Kicked . | . . . Crushed . | . . . Highest Temperature 198 | . 21 198 Average Temperature 28 | . 7 99 Received Heat Transfer 467 | . 441 26 Siege Activations . | . . . Robots Corrupted . | . . . Combat Hostiles . | . . . Parts Fried . | . . . Impact Corruptions . | . . . Robots Melted . | . . . Combat Hostiles . | . . . Parts Melted . | . . . Heat Transferred 350 | . 300 50 Parts Sabotaged . | . . . Parts Stolen . | . . . Parts Stripped . | . . . Power Chain Reactions . | . . . Alert | -11 -10 -10 ------- Run | Yrd Mat Min Peak Influence 250 | 10 250 63 Initial 39 | . 6 39 Average 94 | 1 110 29 Maximum Alert Level 1 | . 1 . Low Security (%) 92 | 100 90 100 Level 1 7 | . 9 . Level 2 . | . . . Level 3 . | . . . Level 4 . | . . . Level 5 . | . . . High Security . | . . . Max Security . | . . . Squads Dispatched 2 | . 2 . Investigation 1 | . 1 . Extermination . | . . . Reinforcement 1 | . 1 . Assault . | . . . Garrison . | . . . Intercept . | . . . Searches Triggered . | . . . Construction Impeded . | . . . Haulers Reinforced . | . . . Active Scanning Responses . | . . . Cargo Convoy Interrupts . | . . . Stealth | -11 -10 -10 --------- Run | Yrd Mat Min Distress Signals 4 | . 4 . Communications Jammed . | . . . Distress Signals . | . . . Times Spotted 45 | . 29 16 Peak Tracking Total 17 | . 4 17 Tactical Retreats 2 | . 1 1 Traps | -11 -10 -10 ------- Run | Yrd Mat Min Traps Triggered 1 | . 1 . Indirectly . | . . . Trap Hack Attempts . | . . . Triggered . | . . . Disarmed . | . . . Reprogrammed . | . . . Reused . | . . . Traps Extracted . | . . . Installed . | . . . Triggered . | . . . Machines | -11 -10 -10 ---------- Run | Yrd Mat Min Machines Disabled 1 | . 1 . Max in Single Turn 1 | . 1 . Machines Repaired . | . . . Machines Dismantled . | . . . Machines Sabotaged . | . . . Overloaded Fab Kills . | . . . Hacking | -11 -10 -10 --------- Run | Yrd Mat Min Machines Accessed 4 | . 4 . Terminals 4 | . 4 . Fabricators . | . . . Repair Stations . | . . . Recycling Units . | . . . Scanalyzers . | . . . Garrison Access . | . . . Total Hacks 8 | . 8 . Successful 5 | . 5 . Failed 3 | . 3 . Catastrophic 1 | . 1 . Database Lockouts . | . . . Manual 6 | . 6 . Terminals 8 | . 8 . Fabricators . | . . . Repair Stations . | . . . Recycling Units . | . . . Scanalyzers . | . . . Garrison Access . | . . . Terminal Hacks 3 | . 3 . Robot Analysis 1 | . 1 . Branch Access Points 1 | . 1 . Zone Layout 1 | . 1 . Fabricator Hacks . | . . . Repair Station Hacks . | . . . Recycling Unit Hacks . | . . . Scanalyzer . | . . . Garrison Access Hacks . | . . . Unauthorized Hacks 2 | . 2 . Terminals 2 | . 2 . Botnet 2 | . 2 . Fabricators . | . . . Repair Stations . | . . . Recycling Units . | . . . Scanalyzers . | . . . Garrison Access . | . . . Data Cores Recovered . | . . . Used . | . . . Hacking Detections 4 | . 4 . Full Trace Events . | . . . Feedback Events . | . . . Feedback Blocked . | . . . Robot Schematics Acquired . | . . . Robots Built . | . . . Authchips . | . . . Time . | . . . Total Robot Build Rating . | . . . Part Schematics Acquired . | . . . Parts Built . | . . . Authchips . | . . . Time . | . . . Total Part Build Rating . | . . . Parts Repaired . | . . . Time . | . . . Parts Recycled . | . . . Recycled Matter . | . . . Retrieved Matter . | . . . Retrieved Components . | . . . Parts Scanalyzed . | . . . Part Schematics Acquired . | . . . Parts Damaged . | . . . Bothacking | -11 -10 -10 ------------ Run | Yrd Mat Min Used RIF Installer . | . . . Robots Hacked . | . . . Non-combat . | . . . Combat . | . . . Robot Hacks Applied . | . . . Relay Couplers Released . | . . . Fabnet Peak Effective % . | . . . Robots Rewired . | . . . Allies Hacked . | . . . Hacks Repelled . | . . . Allies | -11 -10 -10 -------- Run | Yrd Mat Min Total Allies . | . . . Largest Group . | . . . Highest-Rated Group . | . . . Highest-Rated Ally . | . . . Total Orders . | . . . Ally Attacks . | . . . Total Damage . | . . . Kills . | . . . Allies Corrupted . | . . . Allies Melted . | . . . Intel | -11 -10 -10 ------- Run | Yrd Mat Min Robot Analysis Total 1 | . 1 . Derelict Logs Recovered . | . . . Drone Launches . | . . . Drone Recoveries . | . . . Exploration | -11 -10 -10 ------------- Run | Yrd Mat Min Turns Passed 977 | 98 818 61 Spaces Moved 491 | 65 388 38 Core 36 | 3 . 33 Treads 127 | . 122 5 Legs 328 | 62 266 . Wheels . | . . . Hover . | . . . Flight . | . . . Fastest Speed 50 | 50 120 100 Average Speed 128 | 116 132 113 Slowest Speed 160 | 120 160 160 Overloaded Moves . | . . . Propulsion Burnouts . | . . . Robots Hopped . | . . . Cave-ins Triggered . | . . . Exploration Rate (%) 32 | 4 76 17 Regions Visited 2 Branch Regions 1 Pre-discovered Areas . | . . . Known Exits Taken 1 | . 1 . Unknown Exits Taken 1 | 1 . . Scrap Searched . | . . . Spaces Dug . | . . . Terrain Destroyed 29 | . . 29 Melee . | . . . Projectile . | . . . AOE 29 | . . 29 Terrain Rammed . | . . . Walls Destroyed . | . . . Machines Disabled . | . . . Actions | -11 -10 -10 --------- Run | Yrd Mat Min Total 678 | 80 549 49 Wait 56 | . 56 . Move 489 | 64 387 38 Hop . | . . . Pick Up 14 | 8 6 . Fast Attach 7 | 6 1 . Attach 8 | . 5 3 Detach 1 | . . 1 Swap 4 | . 2 2 Drop 3 | . 3 . Fire 96 | 2 89 5 Melee . | . . . Ram . | . . . Kick . | . . . Crush . | . . . Escape Stasis . | . . . Rewire . | . . . Trap . | . . . Miscellaneous . | . . . Route ------- -11/Scrapyard -10/Materials (discovered 3 exits: [*Mat x2] / *Min) -10/Mines History --------- Turn | Location | Event 34 | -11/Scrapyard | Discovered new exit (range 15) 99 | -11/Scrapyard | Entered Materials 217 | -10/Materials | Identified exit to Mines 318 | -10/Materials | Build established: Mutant 335 | -10/Materials | Discovered new exit (range 15) 538 | -10/Materials | Discovered new exit (range 10) 621 | -10/Materials | Lost 3 parts (2n1u) 681 | -10/Materials | Core integrity fell below 50% 699 | -10/Materials | Derelicts attacked the area 856 | -10/Materials | Core integrity fell below 20% 899 | -10/Materials | Lost 3 parts (1p1u1w) 917 | -10/Materials | Entered Mines 918 | -10/Mines | Assembled infested the area 961 | -10/Mines | Destroyed 8 combat bots 968 | -10/Mines | Met a Derelict bent on vengeance 978 | -10/Mines | Destroyed by G-34 Mercenary with Small Laser Last Messages --------------- 00929_ as-00746 destroyed. 00931_ Lgt. Treads destroyed. 00932_ Destroyed Asb. F-torch. 00932_ as-47478 destroyed. 00932_ Lgt. Treads destroyed. 00932_ Destroyed Lgt. Treads. 00934_ Seismic Detector destroyed. 00934_ System corrupted by crushing effect (+5). 00935_ Grenade Launcher destroyed. 00935_ as-82151 destroyed. 00935_ as-10284 destroyed. 00935_ as-44201 destroyed. 00936_ System corrupted: Heat flow error (+188). 00940_ The unstable cave ceiling collapses. 00940_ as-02014 destroyed. 00940_ Ion Engine destroyed. 00941_ The unstable cave ceiling collapses. 00950_ Grenade Launcher destroyed. 00953_ The unstable cave ceiling collapses. 00966_ E2GY1H7Z|4JMLXP1BQEG7,U>C Map ----- +----------------------------------------------------+ | ????????????# % #?????????? | | ????????????# #?????????????? | | ????????????# #?????????????? | | ????????????### #?????????????? | | ??????????????### #?????????????? | | ????????????????# ##?????????????? | | ???????########## #??????????????? | | ???????# #??????????????? | | ???????# #???????????? | | ???????# ###### """ #??????????? | | ???????# #????## """ #??????????? | | ???????# #?????# """ ##??????????? | | ???????# #?????# #???????????? | | ???????# #?????# ##???????????? | | ???????# #?????## ##????????????? | | ??????## ##??????####?????????????? | | ??????# #???????????????????????? | | ?????## #???????????????????????? | | ????## #???????????????????????? | | ????# #???????????????????????? | | ????# #???????????????????????? | | ????## ##??????????????????????? | | ?????## ####???????????????????? | | ?????## ##??????????????????? | | ?????# ##?????????????????? | | ?????# @ #?????????????????? | | ?????# g ???????????? | | ????# $ ????????? | | ????# ### """?????????? | | ????## #???????????????? | | ?????###### ## ##???????????????? | | ??????????## #?##????????????????? | | ???????????? ???????????????????? | | ???????????? ??????????????????? | | ????????????# ??????????????????? | | ?????????????# ?????????????????? | | ?????????????? ????????????????? | | ??????????????# ????????????????? | | ???????????????# ????????????????? | | ???????????????????????????????????? | | ???????????????????????????????????? | | ???????????????????????????????????? | | ???????????????????????????????????? | | ???????????????????????????????????? | | ???????????????????????????????????? | | ???????????????????????????????????? | | ???????????????????????????????????? | | ???????????????????????????????????? | | | | | +----------------------------------------------------+ Best States ------------- Heat Dissipation 39 Energy Generation 14 Energy Capacity 250 Matter Stores 300 Matter Capacity 300 Sight Range 16 Terrain Scan Range 16 Terrain Scan Density 10 Evasion (%) 55 Recoil Reduction 2 Item Schematics ----------------- None Robot Schematics ------------------ None Fabricated ------------ Nothing Alien Tech Used ----------------- None Achievements -------------- None Challenges ------------ None Game ------ Seed CoordinationMassAirjet Manual? 0 Play Time 00:09:08 Cumulative 82.5 hours Start 2024.12.01 @ 22:23:40 End 2024.12.01 @ 22:31:45 Sessions 1 Manual Loads 0 Difficulty Rogue Special Mode None Game No. 85 Rogue 85 Adventurer 0 Explorer 0 Win Type - Total 0 Types 0/0/0/0/0/0/0/0/0 Lore% 12 Gallery% 35 Achievement% 33 Wizard Run 0 Options --------- Layout 2 ASCII 0 Keyboard 0 Movement Mouse Keybinds 0 Fullscreen 2 Font 16/SmallcapsGlow Map View 55x47 Zoom Use 0% Tactical HUD 1 Map Filters NONE Filters NONE Steam 1 RUN: 2832df62-7187-47c1-abc5-534306d16cb3